[Event "WR Chess Masters 2023"]
[Site "Duesseldorf"]
[Date "2023.02.22"]
[Round "6.2"]
[White "Gukesh D"]
[Black "Abdusattorov, Nodirbek"]
[Result "1/2-1/2"]
[ECO "A20"]
[WhiteElo "2718"]
[BlackElo "2734"]
[Annotator "TA"]
[PlyCount "84"]
[EventDate "2023.02.16"]
[EventCountry "GER"]
[SourceTitle "playchess.com"]
[Source "ChessBase"]
[SourceQuality "1"]
[TimeControl "40/7200:20/3600:900+30"]

{[%evp 9,84,1,11,11,3,0,-15,-8,-6,-15,6,14,45,22,37,8,14,19,18,13,19,11,15,10,13,20,20,6,7,0,0,0,0,0,0,0,0,-20,0,0,0,-31,0,0,0,0,0,0,0,0,8,8,8,0,0,0,0,0,0,0,0,0,8,0,0,0,8,0,0,0,0,0,0,0,0,0,0]} 1. c4 {[%emt 0:00:12]} e5 {[%emt 0:01:08]} 2. g3 {[%emt 0:00:08]} c6 {[%emt 0:00:24]} 3. d4 {[%emt 0:00:43]} exd4 {[%emt 0:00:22]} 4. Qxd4 {[%emt 0:00:24]} Nf6 {[%emt 0:00:19]} 5. Nf3 {[%emt 0:00:14]} Na6 {[%emt 0:00:23]} 6. Bg2 {[%emt 0:01:15] A20: English Opening: 1...e5.} Bc5 {[%emt 0:00:50]} 7. Qd1 {[%emt 0:07:42]} d5 {[%emt 0:01:20]} 8. cxd5 {[%emt 0:00:50]} Qxd5 {[%emt 0:00:42]} 9. O-O {[%emt 0:02:35]} Qxd1 {[%emt 0:07:30]} 10. Rxd1 {[%emt 0:00:03] [#]} Ke7 $146 {[%emt 0:07:02]} ({Predecessor:} 10... O-O 11. Nc3 Bf5 12. Nd4 Bg6 13. Bg5 Rfe8 14. Bxf6 gxf6 15. Rd2 Rad8 16. Rad1 Bb4 {½-½ Cruz,C (2569)-Sokolov,I (2646) ESP-chT CECLUB Honor 2014 (2.4)}) 11. Nc3 {[%emt 0:04:04]} Be6 {[%emt 0:00:23]} 12. Nd4 {[%emt 0:05:35]} (12. Bf4 {is interesting.} Rhd8 13. Ng5 Bf5 14. Rac1) 12... Rad8 {[%emt 0:05:52]} 13. Be3 {[%emt 0:02:20]} Ng4 {[%emt 0:06:02]} 14. Nxe6 {[%emt 0:01:19]} Rxd1+ {[%emt 0:02:09]} 15. Nxd1 {[%emt 0:00:08]} ({Don't play} 15. Rxd1 Nxe3 16. fxe3 Bxe3+ 17. Kh1 fxe6 $17) 15... fxe6 {[%emt 0:00:06]} 16. Bg5+ {[%emt 0:02:14]} Nf6 {[%emt 0:01:06]} 17. Nc3 {[%emt 0:04:12]} Rd8 {[%emt 0:04:17]} 18. Rd1 {[%emt 0:01:40]} Bd4 {[%emt 0:05:41]} 19. e3 {[%emt 0:32:33]} Bxc3 {[%emt 0:06:44]} 20. Rxd8 {[%emt 0:01:27]} Kxd8 {[%emt 0:00:02]} 21. bxc3 $11 {[%emt 0:00:05][%mdl 4096] Endgame KBB-KNN} Nc5 {[%emt 0:07:54]} 22. Kf1 {[%emt 0:07:04]} e5 {[%emt 0:04:45]} 23. f4 {[%emt 0:03:26]} Kd7 {[%emt 0:01:52]} 24. Bxf6 {[%emt 0:13:15]} gxf6 {[%emt 0:00:05] KB-KN} 25. Bh3+ {[%emt 0:00:55]} Kd6 {[%emt 0:02:48]} 26. Bf5 {[%emt 0:00:08] The position is equal.} h6 {[%emt 0:00:06]} 27. Ke2 {[%emt 0:00:33]} a5 {[%emt 0:02:19]} 28. h4 {[%emt 0:00:46]} b5 {[%emt 0:06:38]} 29. g4 {[%emt 0:00:26]} b4 {[%emt 0:07:41]} 30. cxb4 {[%emt 0:00:09]} axb4 {[%emt 0:00:03]} 31. g5 {[%emt 0:01:02]} fxg5 {[%emt 0:00:08]} 32. fxg5 {[%emt 0:00:04]} hxg5 {[%emt 0:00:08]} 33. hxg5 {[%emt 0:00:13] Strongly threatening Kf3.} e4 {[%emt 0:08:17]} 34. Kd2 {[%emt 0:05:35]} (34. g6 $5 Ke7 $8 35. Kf2 $11) 34... Ke5 {[%emt 0:00:44]} 35. Bc8 {[%emt 0:01:31]} (35. g6 $5 Kf6 $8 36. Kc2 $11) 35... Na4 {[%emt 0:01:19]} 36. Bd7 {[%emt 0:02:05]} Nc5 {[%emt 0:01:46]} 37. Bc8 {[%emt 0:01:20]} Na4 {[%emt 0:00:05]} 38. Bd7 {[%emt 0:01:11]} (38. g6 $5 Kf6 $8 39. g7 Kxg7 40. Bd7 $11) 38... Nc5 {[%emt 0:00:05]} 39. Bxc6 {[%emt 0:00:17]} Kf5 {[%emt 0:00:04]} 40. Kc2 {[%emt 0:00:00]} Kxg5 {[%emt 0:00:00]} 41. Bxe4 {[%emt 0:00:09][%mdl 64] [#] Deflection} Nxe4 {[%emt 0:00:11]} 42. Kb3 {[%emt 0:00:03]} Kf5 {[%emt 0:00:12] Weighted Error Value: White=0.05 (flawless) /Black=0.04 (flawless)} 1/2-1/2

[Event "WR Chess Masters 2023"]
[Site "Duesseldorf"]
[Date "2023.02.22"]
[Round "6.3"]
[White "Giri, Anish"]
[Black "Praggnanandhaa R"]
[Result "1/2-1/2"]
[ECO "A22"]
[WhiteElo "2780"]
[BlackElo "2690"]
[Annotator "TA"]
[PlyCount "137"]
[EventDate "2023.02.16"]
[EventCountry "GER"]
[SourceTitle "playchess.com"]
[Source "ChessBase"]
[SourceQuality "1"]
[TimeControl "40/7200:20/3600:900+30"]

{[%evp 9,137,3,6,4,6,0,28,0,0,-1,-6,-15,0,-11,14,0,0,0,0,0,0,0,7,5,12,15,12,2,19,18,32,1,7,7,10,0,12,-18,-21,-25,0,-1,-1,-39,-27,-23,-18,-83,-88,-92,-89,-73,-93,-88,-63,-63,-62,-54,-55,-56,-55,-62,-44,-71,-22,-54,0,-72,0,-61,-63,-130,-62,-73,0,0,0,0,0,0,0,0,0,0,0,0,0,0,0,0,0,0,0,0,0,0,0,0,0,0,0,0,0,0,0,0,0,-178,-163,-214,0,0,0,0,0,0,0,0,0,0,0,0,0,0,0,0,0,0,0,0]} 1. c4 {[%emt 0:00:01]} e5 {[%emt 0:00:26]} 2. Nc3 {[%emt 0:00:16]} Bb4 {[%emt 0:00:06]} 3. d3 {[%emt 0:00:10]} Nf6 {[%emt 0:01:05]} 4. Nf3 {[%emt 0:05:05]} d6 {[%emt 0:00:59]} 5. Bd2 {[%emt 0:15:17]} O-O {[%emt 0:00:54]} 6. a3 {[%emt 0:06:32] A22: English Opening: 1...e5 2 Nc3 Nf6.} Bxc3 {[%emt 0:00:48]} 7. Bxc3 {[%emt 0:00:03] [#]} e4 $146 {[%emt 0:10:05]} ({Predecessor:} 7... c6 8. g3 Nbd7 9. Bg2 Qc7 10. O-O h6 11. b4 Re8 12. Nd2 d5 13. Qb3 d4 {0-1 Haraguchi,M (1579)-Nobre,J (1704) Homs Xeque Mate op 2018 (3)}) 8. dxe4 {[%emt 0:03:42] White has an edge.} Nxe4 {[%emt 0:00:15]} 9. Rc1 {[%emt 0:00:24]} Re8 {[%emt 0:02:09]} 10. e3 {[%emt 0:01:08]} Nc6 {[%emt 0:11:01]} 11. Be2 {[%emt 0:00:36]} Bg4 {[%emt 0:06:57]} (11... Nxc3 {simplifies} 12. Rxc3 b6 13. O-O Bb7) 12. O-O {[%emt 0:00:33]} a5 {[%emt 0:03:30]} 13. b3 {[%emt 0:04:26]} Nxc3 {[%emt 0:01:55]} 14. Rxc3 {[%emt 0:01:07]} Qf6 {[%emt 0:02:18]} 15. Qd2 {[%emt 0:00:52]} Qg6 {[%emt 0:08:41]} 16. Nh4 {[%emt 0:03:33]} Qh5 {[%emt 0:01:07][%csl LRe2,LRh4]} 17. Bxg4 {[%emt 0:00:08]} Qxg4 {[%emt 0:00:13]} 18. Nf3 {[%emt 0:00:06]} Ne5 {[%emt 0:10:50]} 19. Nd4 {[%emt 0:14:10]} a4 {[%emt 0:00:55]} 20. f3 {[%emt 0:03:37]} Qd7 {[%emt 0:01:52]} 21. b4 {[%emt 0:00:13]} c5 {[%emt 0:01:35]} 22. Nc2 {[%emt 0:01:35]} Rac8 {[%emt 0:05:32]} 23. Rb1 {[%emt 0:05:38]} Qe6 {[%emt 0:04:28]} 24. Qe2 {[%emt 0:07:19]} b6 {[%emt 0:01:27]} 25. e4 {[%emt 0:02:50]} f5 {[%emt 0:01:02]} 26. bxc5 {[%emt 0:05:51]} bxc5 {[%emt 0:02:07]} 27. exf5 $1 {[%emt 0:01:42]} Qxf5 {[%emt 0:00:20]} 28. Rd1 {[%emt 0:00:50]} (28. Re3 $11) 28... Rb8 $17 {[%emt 0:03:51]} 29. Ne3 {[%emt 0:00:39]} Qg6 {[%emt 0:02:44]} 30. Nd5 {[%emt 0:04:10]} Nc6 {[%emt 0:08:56]} 31. Re3 {[%emt 0:02:44]} Nd4 $1 {[%emt 0:01:50]} 32. Qf2 {[%emt 0:03:40]} Rxe3 {[%emt 0:01:11]} 33. Qxe3 {[%emt 0:00:05]} Qc2 {[%emt 0:04:51][%csl LRc4,LRd1]} 34. Re1 {[%emt 0:04:12]} Qxc4 {[%emt 0:01:12]} 35. Qe4 {[%emt 0:01:56]} Qc2 $1 {[%emt 0:03:35] ...Qxe4 would be deadly.} 36. Qe7 {[%emt 0:07:28]} Qd2 {[%emt 0:02:10]} (36... Qg6 $17 37. Qe3 Nc6) 37. Qe4 {[%emt 0:01:19]} Qc2 {[%emt 0:01:40]} 38. Qe7 {[%emt 0:00:02]} Qd2 {[%emt 0:00:08][%cal Od4f3] aiming for ...Nxf3+!} (38... Qg6 $5 {[%cal Rd4f3]} 39. Nf4 Qh6 $17) 39. Qe4 {[%emt 0:00:02]} Rf8 {[%emt 0:02:58]} 40. Nb6 {[%emt 0:00:00]} (40. h3 $15) 40... h6 {[%emt 0:00:00]} (40... Nc2 $1 $17 {[%cal Rc2e1]} 41. Re2 Qc1+ 42. Kf2 Nd4) 41. Nd7 {[%emt 0:25:59] [#]} Rf7 {[%emt 0:33:32]} ({Better is} 41... Nc2 $1 $17 {[%cal Rc2e1]} 42. Re2 Qd4+ 43. Qxd4 Nxd4) 42. Kf1 $11 {[%emt 0:16:44] Really sharp!} Rxd7 {[%emt 0:14:53]} 43. Qe8+ {[%emt 0:00:04]} Kh7 {[%emt 0:00:02]} 44. Qxd7 {[%emt 0:00:04][%mdl 4096] Endgame KQR-KQN} Qd3+ {[%emt 0:00:16]} 45. Kf2 {[%emt 0:00:25]} c4 {[%emt 0:00:07]} 46. Qxa4 {[%emt 0:02:37]} c3 {[%emt 0:02:35] Hoping for ...c2.} 47. Qd1 {[%emt 0:04:07]} Qc4 {[%emt 0:01:11] ...c2 is the strong threat.} 48. Ke3 {[%emt 0:04:16]} Nf5+ {[%emt 0:00:08]} 49. Kf2 {[%emt 0:00:01]} d5 {[%emt 0:03:17] And now ...d4 would win.} 50. Qc2 {[%emt 0:06:13] Inhibits d4.} g6 {[%emt 0:00:07]} 51. Kg1 {[%emt 0:01:40]} h5 {[%emt 0:01:45]} 52. a4 {[%emt 0:00:54]} Qc5+ {[%emt 0:01:27]} 53. Kh1 {[%emt 0:00:30][%cal Oa4a5]} d4 {[%emt 0:00:35]} 54. Qd3 {[%emt 0:00:22]} h4 {[%emt 0:00:53]} 55. g4 {[%emt 0:00:52]} hxg3 {[%emt 0:00:13]} 56. hxg3 {[%emt 0:00:00]} Nxg3+ {[%emt 0:00:05]} (56... c2 $5 57. Rc1 $8 Nxg3+ 58. Kg2 Nf5 $11) 57. Kg2 {[%emt 0:00:01]} Nf5 {[%emt 0:00:09] White must now prevent ...Qc7.} 58. Kf2 $2 {[%emt 0:00:16]} (58. f4 $1 $11 {and White stays safe.}) 58... Qc7 {[%emt 0:00:15][%mdl 1024] ( -> ...Qh2+). Black has strong compensation.} 59. Ke2 {[%emt 0:00:49] [#]} (59. Rh1+ $142 Kg7 60. Rg1) 59... Qh2+ $2 {[%emt 0:00:39]} ({Black should try} 59... Qe7+ $1 $19 60. Kd1 Qa3) 60. Kd1 {[%emt 0:00:00] The position is equal.} Qa2 {[%emt 0:00:00]} 61. Qc2 {[%emt 0:00:35]} Qa1+ {[%emt 0:07:06]} 62. Ke2 {[%emt 0:01:51]} Qa3 {[%emt 0:01:44]} 63. Kd3 {[%emt 0:01:31]} Kg7 {[%emt 0:00:47]} 64. Re5 {[%emt 0:06:59]} Qd6 {[%emt 0:02:12]} 65. f4 {[%emt 0:02:09]} Qa6+ {[%emt 0:01:45]} 66. Rb5 {[%emt 0:00:03]} Nd6 {[%emt 0:03:34][%mdl 64] Pin} 67. Kxd4 {[%emt 0:00:18] Threatens to win with Rb4.} Nxb5+ {[%emt 0:00:02]} 68. axb5 {[%emt 0:00:03]} Qxb5 {[%emt 0:00:03]} 69. Qxc3 {[%emt 0:00:12] Weighted Error Value: White=0.12 (very precise) /Black=0.14 (very precise)} 1/2-1/2

[Event "WR Chess Masters 2023"]
[Site "Duesseldorf"]
[Date "2023.02.22"]
[Round "6.4"]
[White "Nepomniachtchi, Ian"]
[Black "Esipenko, Andrey"]
[Result "1/2-1/2"]
[ECO "E36"]
[WhiteElo "2793"]
[BlackElo "2675"]
[Annotator "TA"]
[PlyCount "175"]
[EventDate "2023.02.16"]
[EventCountry "GER"]
[SourceTitle "playchess.com"]
[Source "ChessBase"]
[SourceQuality "1"]
[TimeControl "40/7200:20/3600:900+30"]

{[%evp 13,175,13,0,0,-10,0,0,12,10,0,28,20,4,6,1,10,10,10,3,0,0,4,10,0,0,0,0,0,9,0,3,0,0,0,0,0,0,0,0,0,0,0,0,-14,0,0,0,0,0,-11,0,0,0,0,0,0,0,0,0,0,0,0,7,6,5,5,6,0,8,0,0,0,0,0,0,0,5,5,8,8,8,8,8,8,8,8,28,28,129,8,8,8,8,8,8,8,8,8,8,2,3,4,12,0,0,0,0,0,0,0,0,0,0,0,0,0,0,0,0,0,0,0,0,0,0,0,0,0,0,0,0,0,0,0,0,0,0,0,0,0,0,0,8,8,8,8,8,8,8,8,8,8,8,0,8,8,8,8,8,8,8,8,8,0]} 1. d4 {[%emt 0:00:05]} Nf6 {[%emt 0:00:27]} 2. c4 {[%emt 0:00:05]} e6 {[%emt 0:00:05]} 3. Nc3 {[%emt 0:00:04]} Bb4 {[%emt 0:00:30]} 4. Qc2 {[%emt 0:00:06]} d5 {[%emt 0:01:05]} 5. a3 {[%emt 0:00:09]} Bxc3+ {[%emt 0:00:35]} 6. Qxc3 {[%emt 0:00:04]} O-O {[%emt 0:01:35]} 7. cxd5 {[%emt 0:00:08]} Ne4 {[%emt 0:03:09]} 8. Qc2 $1 {[%emt 0:00:09]} exd5 {[%emt 0:00:16]} 9. Bf4 {[%emt 0:00:15]} Bf5 {[%emt 0:12:13]} ({But not} 9... Qh4 10. e3 $14) 10. Qxc7 {[%emt 0:01:26]} Qxc7 {[%emt 0:13:32]} 11. Bxc7 {[%emt 0:00:09]} Rc8 {[%emt 0:04:20]} 12. Bf4 {[%emt 0:00:16]} Nc6 {[%emt 0:07:08]} 13. f3 {[%emt 0:00:51]} Nf6 {[%emt 0:00:35]} 14. g4 {[%emt 0:02:48]} Nxd4 {[%emt 0:27:41]} 15. Rd1 {[%emt 0:00:36]} Ne6 {[%emt 0:00:19]} 16. gxf5 {[%emt 0:01:05]} Nxf4 {[%emt 0:00:06]} 17. e3 {[%emt 0:00:05]} N4h5 {[%emt 0:00:14]} 18. Ne2 {[%emt 0:05:27]} Rc2 {[%emt 0:02:58]} 19. Rd2 {[%emt 0:00:40]} Rxd2 {[%emt 0:02:46]} 20. Kxd2 {[%emt 0:00:07]} Ne8 {[%emt 0:01:29]} 21. Nd4 {[%emt 0:12:25]} Nhf6 {[%emt 0:00:37]} 22. Bd3 {[%emt 0:02:53]} Rc8 {[%emt 0:01:44]} 23. Re1 {[%emt 0:04:29]} Nd7 {[%emt 0:01:00]} 24. Bb1 {[%emt 0:04:18]} Nd6 {[%emt 0:07:18]} 25. Ba2 {[%emt 0:00:42]} Nf6 {[%emt 0:02:40]} 26. Ke2 {[%emt 0:03:47]} Kf8 {[%emt 0:00:59]} 27. Kf2 {[%emt 0:02:21]} Ke7 {[%emt 0:00:26]} 28. Kg3 {[%emt 0:00:55]} Rc5 {[%emt 0:02:33]} 29. Rd1 {[%emt 0:02:11]} Nh5+ {[%emt 0:00:47]} 30. Kf2 {[%emt 0:01:18]} Nf6 {[%emt 0:00:20]} 31. Bb3 {[%emt 0:03:38]} Nb5 {[%emt 0:03:38]} 32. Ne2 {[%emt 0:01:46]} Nd6 {[%emt 0:00:18]} 33. Nc3 {[%emt 0:05:41]} Nxf5 {[%emt 0:00:36]} 34. Nxd5+ {[%emt 0:00:22]} Nxd5 {[%emt 0:00:14]} 35. Rxd5 {[%emt 0:00:05]} Rxd5 {[%emt 0:00:23]} 36. Bxd5 {[%emt 0:00:05]} b6 {[%emt 0:03:04]} 37. f4 {[%emt 0:00:26]} Nh6 {[%emt 0:08:50]} 38. h3 {[%emt 0:02:32]} f6 {[%emt 0:01:30]} 39. e4 {[%emt 0:01:33]} Nf7 {[%emt 0:00:24]} 40. Kf3 {[%emt 0:00:00]} g6 {[%emt 0:00:00]} 41. h4 {[%emt 0:05:29]} Nd6 {[%emt 0:11:42]} 42. Ke3 {[%emt 0:01:40]} h6 {[%emt 0:15:45]} 43. Kf3 {[%emt 0:00:38]} Ne8 {[%emt 0:05:03]} 44. Bg8 {[%emt 0:04:28]} Ng7 {[%emt 0:05:20]} 45. Bc4 {[%emt 0:02:25]} g5 {[%emt 0:02:38]} 46. hxg5 {[%emt 0:05:18]} hxg5 {[%emt 0:00:25]} 47. fxg5 {[%emt 0:01:06]} fxg5 {[%emt 0:00:03]} 48. e5 {[%emt 0:00:04]} Nf5 $1 {[%emt 0:00:28]} 49. Bd5 {[%emt 0:03:29]} Kd7 {[%emt 0:01:48]} 50. Ba2 {[%emt 0:04:37]} Ne7 {[%emt 0:05:50] [#]} (50... Nd4+ $11 51. Ke4 Nc6) 51. Kg4 {[%emt 0:03:05]} (51. e6+ $1 $16 Ke8 52. Kg4) 51... Nc6 $11 {[%emt 0:00:26]} 52. Kf5 {[%emt 0:00:16]} g4 {[%emt 0:00:57]} 53. Be6+ {[%emt 0:00:31]} Kd8 $1 {[%emt 0:02:56]} 54. Kf6 {[%emt 0:05:41]} (54. Kf4 $5) 54... g3 {[%emt 0:00:19]} 55. Bh3 {[%emt 0:02:05]} (55. Bd5 $5 Ne7 $8 56. Bf3 $14) 55... Ne7 {[%emt 0:01:06]} 56. b4 {[%emt 0:01:57]} Nd5+ {[%emt 0:00:54]} 57. Kf7 $1 {[%emt 0:00:17]} Ne7 {[%emt 0:02:26]} ({Don't play} 57... Nf4 58. e6 Nd5 59. b5 $14) 58. b5 {[%emt 0:01:19]} Nd5 {[%emt 0:00:34]} 59. Bg2 {[%emt 0:00:29]} Ne7 {[%emt 0:00:57]} 60. Ke6 {[%emt 0:00:00]} Nc8 {[%emt 0:00:00]} 61. Be4 {[%emt 0:03:41]} Kc7 {[%emt 0:03:09]} 62. Bf3 {[%emt 0:05:03]} Kd8 {[%emt 0:00:26]} 63. Bg2 {[%emt 0:00:06]} Kc7 {[%emt 0:01:12]} 64. Kf7 {[%emt 0:00:58]} (64. a4 $5) 64... Kd8 {[%emt 0:00:23]} 65. a4 {[%emt 0:00:35]} Ne7 {[%emt 0:02:58]} 66. Ke6 $1 {[%emt 0:00:49]} Nc8 {[%emt 0:00:48]} 67. Kf5 {[%emt 0:00:35]} Ne7+ {[%emt 0:00:18]} 68. Kf6 {[%emt 0:00:24]} Kd7 {[%emt 0:00:45]} 69. Be4 {[%emt 0:00:39]} Kd8 {[%emt 0:00:45]} 70. Ke6 {[%emt 0:01:38]} Nc8 {[%emt 0:00:29]} 71. Kf7 {[%emt 0:04:10]} (71. Kf5 $5) 71... Ne7 {[%emt 0:00:25]} 72. Bg2 {[%emt 0:00:36]} (72. e6 $5) 72... Kd7 {[%emt 0:00:21]} 73. Bh3+ {[%emt 0:00:17]} Kd8 {[%emt 0:00:13]} 74. e6 {[%emt 0:00:20]} Nd5 {[%emt 0:01:10]} 75. Bg2 {[%emt 0:00:16]} Ne7 {[%emt 0:00:09]} 76. Kf6 {[%emt 0:00:14]} Ng8+ {[%emt 0:01:25]} 77. Kg7 {[%emt 0:00:35]} Ke7 {[%emt 0:05:10]} 78. Kxg8 {[%emt 0:03:14]} Kxe6 {[%emt 0:00:04]} 79. Bf1 {[%emt 0:02:11]} (79. Kg7 $5 Kd6 $8 80. Kg6 $11) 79... Kd6 {[%emt 0:00:58]} 80. Kf7 {[%emt 0:00:07]} (80. Kg7 $5 Kc5 $8 81. Kh6 $11) 80... Kc5 $1 {[%emt 0:00:12]} 81. Ke6 {[%emt 0:00:17]} (81. Kf6 $5 Kb4 $8 82. Bh3 $11) 81... Kb4 {[%emt 0:00:07]} 82. Kd5 {[%emt 0:00:12]} Kxa4 {[%emt 0:00:22]} 83. Kc6 {[%emt 0:00:35]} Ka5 {[%emt 0:00:16]} 84. Kb7 {[%emt 0:00:05]} g2 {[%emt 0:00:04]} 85. Bxg2 {[%emt 0:00:03]} Kxb5 {[%emt 0:00:04]} 86. Kxa7 {[%emt 0:00:05]} Ka5 {[%emt 0:00:04]} 87. Bf1 {[%emt 0:00:03]} b5 {[%emt 0:00:06]} 88. Bxb5 {[%emt 0:00:03]} 1/2-1/2

[Event "WR Chess Masters 2023"]
[Site "Duesseldorf"]
[Date "2023.02.22"]
[Round "6.5"]
[White "Duda, Jan-Krzysztof"]
[Black "Keymer, Vincent"]
[Result "1/2-1/2"]
[ECO "C90"]
[WhiteElo "2729"]
[BlackElo "2690"]
[Annotator "TA"]
[PlyCount "148"]
[EventDate "2023.02.16"]
[EventCountry "GER"]
[SourceTitle "playchess.com"]
[Source "ChessBase"]
[SourceQuality "1"]
[TimeControl "40/7200:20/3600:900+30"]

{[%evp 23,148,15,25,14,14,6,16,0,11,13,11,8,11,14,23,26,24,8,20,0,0,0,0,0,0,0,0,0,0,0,30,18,29,30,46,46,40,46,42,43,79,47,45,38,49,34,35,17,28,24,29,14,20,17,15,21,14,11,16,20,35,33,53,36,35,35,32,31,31,31,31,33,39,37,37,38,40,30,53,30,34,35,34,6,22,13,13,13,14,14,14,14,49,49,49,45,45,39,47,31,31,32,38,8,8,0,0,0,19,15,15,17,12,8,8,8,8,8,8,8,8,8,8,8,8,8,8]} 1. e4 {[%emt 0:00:04]} e5 {[%emt 0:00:04]} 2. Nf3 {[%emt 0:00:06]} Nc6 {[%emt 0:00:03]} 3. Bb5 {[%emt 0:00:10]} a6 {[%emt 0:00:05]} 4. Ba4 {[%emt 0:00:06]} Nf6 {[%emt 0:00:05]} 5. O-O {[%emt 0:00:07]} Be7 {[%emt 0:00:03]} 6. d3 {[%emt 0:00:16]} b5 {[%emt 0:00:26]} 7. Bb3 {[%emt 0:00:09]} d6 {[%emt 0:00:03]} 8. a4 {[%emt 0:00:28]} Bd7 {[%emt 0:01:48]} 9. c3 {[%emt 0:00:35]} O-O {[%emt 0:02:10]} 10. Bc2 {[%emt 0:00:23]} Re8 {[%emt 0:03:35]} 11. Re1 {[%emt 0:00:28]} h6 {[%emt 0:04:29]} 12. Nbd2 {[%emt 0:05:07][%cal Bb1d2,Bd2f1,Bf1e3,Be3c4][%mdl 32]} Bf8 {[%emt 0:02:11]} 13. Nf1 {[%emt 0:03:20] C90: Closed Ruy Lopez with 7...d6: Early deviations.} b4 {[%emt 0:07:16]} 14. a5 {[%emt 0:02:46]} Rb8 {[%emt 0:04:14]} 15. Ne3 {[%emt 0:07:24] [#]} Rb5 $146 {[%emt 0:10:12]} ({Predecessor:} 15... bxc3 16. bxc3 Na7 17. Bb3 Be6 18. Ba4 Bd7 19. Bb3 Be6 20. Ba4 Bd7 21. Bd2 Bxa4 22. Qxa4 {0-1 Baklan,V (2610)-Iordachescu,V (2641) ROM-chT Mamaia 2012 (6.2)}) 16. Ba4 {[%emt 0:05:03]} Rxa5 {[%emt 0:00:47]} 17. Nc4 {[%emt 0:00:38]} Rc5 {[%emt 0:00:26]} 18. Be3 {[%emt 0:01:32]} Rb5 {[%emt 0:08:48]} 19. Bxb5 {[%emt 0:00:58]} axb5 {[%emt 0:00:05]} 20. Ncd2 {[%emt 0:00:22]} d5 {[%emt 0:02:10]} 21. Qc2 {[%emt 0:04:11]} bxc3 {[%emt 0:07:26]} 22. bxc3 {[%emt 0:00:07]} b4 {[%emt 0:00:03] Strongly threatening ...bxc3.} 23. Ba7 $1 {[%emt 0:04:04]} bxc3 {[%emt 0:17:22]} 24. Qxc3 {[%emt 0:00:17]} d4 {[%emt 0:00:01]} 25. Qb3 {[%emt 0:04:56]} Bb4 {[%emt 0:04:58]} 26. Rec1 {[%emt 0:01:03][%cal Oc1c6] [#] And now Rxc6! would win.} Bc3 {[%emt 0:13:36]} 27. Rxc3 {[%emt 0:02:41]} dxc3 {[%emt 0:00:14]} 28. Qxc3 {[%emt 0:00:06]} Qe7 {[%emt 0:03:01]} 29. Bc5 {[%emt 0:03:41]} Qe6 {[%emt 0:00:06]} 30. h3 {[%emt 0:11:15]} Bc8 {[%emt 0:05:14]} 31. Be3 {[%emt 0:03:33]} Bb7 {[%emt 0:00:39]} 32. Qb2 {[%emt 0:02:28] White is more active.} Bc8 {[%emt 0:01:47]} 33. Ra3 {[%emt 0:02:00]} Nd7 {[%emt 0:03:38]} 34. Qb5 {[%emt 0:01:16]} Nf8 {[%emt 0:02:26]} 35. Kh2 {[%emt 0:05:18]} f6 {[%emt 0:01:05]} 36. Nb3 {[%emt 0:06:51]} Qd6 {[%emt 0:02:47]} 37. Nc5 {[%emt 0:13:57]} Ne6 {[%emt 0:00:54]} 38. Nh4 {[%emt 0:02:08][%cal Bf3h4,Bh4f5,Bf5e7,Be7d5,Bd5b6,Bb6c4][%mdl 32] [#] aiming for Nf5.} Nxc5 {[%emt 0:02:41]} 39. Bxc5 {[%emt 0:00:35]} Qd7 {[%emt 0:01:28]} 40. Nf5 {[%emt 0:00:00]} Nd8 {[%emt 0:00:00]} 41. Qc4+ {[%emt 0:06:47]} Qe6 {[%emt 0:07:43]} 42. Ne7+ {[%emt 0:06:10]} Kh7 {[%emt 0:02:13]} 43. Nd5 {[%emt 0:01:19]} c6 {[%emt 0:11:06]} 44. Nb6 {[%emt 0:02:28]} Qxc4 {[%emt 0:00:06]} 45. Nxc4 {[%emt 0:00:32]} Nb7 {[%emt 0:00:55]} 46. Be3 {[%emt 0:07:58]} Be6 {[%emt 0:02:10]} 47. Nb6 {[%emt 0:01:41]} Re7 {[%emt 0:02:29]} 48. Kg3 {[%emt 0:01:36]} Kg6 {[%emt 0:01:17]} 49. Kf3 {[%emt 0:01:17]} Kf7 {[%emt 0:03:59]} 50. Ke2 {[%emt 0:01:05]} h5 {[%emt 0:02:43]} 51. Rc3 {[%emt 0:01:24]} Nd8 {[%emt 0:01:56]} 52. Na4 {[%emt 0:01:44]} Bc8 {[%emt 0:00:45]} 53. Rb3 {[%emt 0:05:48] Threatens to win with Rb8.} Ne6 {[%emt 0:03:21]} 54. Rb6 {[%emt 0:11:23]} Rc7 {[%emt 0:01:26]} 55. Nc5 {[%emt 0:01:15]} Nxc5 {[%emt 0:00:58]} 56. Bxc5 $11 {[%emt 0:00:06][%mdl 4096] Endgame KRB-KRB} Bd7 {[%emt 0:00:34]} 57. Rb8 {[%emt 0:00:45]} Be6 {[%emt 0:01:41]} 58. h4 {[%emt 0:01:11]} Rc8 {[%emt 0:01:15]} 59. Rb7+ {[%emt 0:03:41]} Kg8 {[%emt 0:00:07]} 60. Ke3 {[%emt 0:00:00]} Ra8 {[%emt 0:00:00]} 61. Re7 {[%emt 0:09:02]} Bb3 {[%emt 0:01:51]} 62. Rc7 {[%emt 0:02:44]} Ba4 {[%emt 0:00:58]} 63. f3 {[%emt 0:13:18]} Bb5 {[%emt 0:00:40] The position is equal.} 64. g4 {[%emt 0:00:48]} hxg4 {[%emt 0:01:48]} 65. fxg4 {[%emt 0:00:06]} Re8 {[%emt 0:11:04]} 66. Rd7 {[%emt 0:01:59]} Kh7 {[%emt 0:00:42]} 67. Kf3 {[%emt 0:01:24]} Ba4 {[%emt 0:00:42]} 68. h5 {[%emt 0:03:21]} Kg8 {[%emt 0:02:46]} 69. Kg3 {[%emt 0:00:25]} Bb3 {[%emt 0:00:56]} 70. Kh4 {[%emt 0:01:14]} Be6 {[%emt 0:00:37]} 71. Rd6 {[%emt 0:02:33]} Kf7 {[%emt 0:00:11]} 72. g5 {[%emt 0:01:22]} fxg5+ {[%emt 0:00:04]} 73. Kxg5 {[%emt 0:00:04][%cal Oc5f2]} Rb8 {[%emt 0:01:05]} 74. Rxc6 {[%emt 0:04:05] Hoping for Rc7+.} Rc8 {[%emt 0:00:16] Against Rc7+.   Weighted Error Value: White=0.05 (flawless) /Black=0.05 (flawless)} 1/2-1/2